fUST/lending_fUST_20250812
["ID","MTS","AMOUNT","RATE_DAILY","PERIOD"]
[378730235,1754993463709,-503.93068992,0.0002097,2]
[378730236,1754993463717,-637.48,0.0002097,2]
[378730237,1754993463727,-460.0,0.0002097,2]
[378730238,1754993463736,-841.31,0.0002097,2]
[378730239,1754993463747,-530.86,0.0002097,2]
[378730240,1754993463757,-552.46,0.0002097,2]
[378730241,1754993463766,-560.65,0.0002097,2]
[378730242,1754993463776,-1222.27,0.0002097,2]
[378730243,1754993463787,-460.0,0.0002097,2]
[378730244,1754993463797,-635.15,0.0002097,2]
[378730245,1754993463807,-460.0,0.0002097,2]
[378730246,1754993463816,-460.0,0.0002097,2]
[378730247,1754993463826,-11752.43,0.0002097,2]
[378730248,1754993463835,-1471.17,0.0002097,2]
[378730249,1754993463846,-3385.92,0.0002097,2]
[378730250,1754993463855,-779.18,0.0002097,2]
[378730251,1754993463865,-460.0,0.0002097,2]
[378730252,1754993463874,-664.15,0.0002097,2]
[378730253,1754993463883,-4114.15,0.0002097,2]
[378730254,1754993463892,-506.59,0.0002097,2]
[378730255,1754993463911,-594.05,0.0002097,2]
[378730256,1754993463920,-2981.76,0.0002097,2]
[378730257,1754993463930,-653.57,0.0002097,2]
[378730258,1754993463939,-1339.5,0.0002097,2]
[378730259,1754993463953,-460.0,0.0002097,2]
[378730260,1754993463964,-460.0,0.0002097,2]
[378730261,1754993463974,-460.0,0.0002097,2]
[378730262,1754993463984,-1857.89,0.0002097,2]
[378730263,1754993463994,-460.0,0.0002097,2]
[378730264,1754993464004,-1593.29,0.0002097,2]
[378730265,1754993464013,-460.0,0.0002097,2]
[378730266,1754993464024,-1132.56,0.0002097,2]
[378730267,1754993464034,-2086.09791105,0.00021016,2]
[378730268,1754993464045,-2000.0,0.00021016,2]
[378730269,1754993464055,-2000.0,0.00021016,2]
[378730270,1754993464064,-2000.0,0.00021016,2]
[378730271,1754993464074,-176.41425642,0.00021016,2]
[378730272,1754993464084,-500.0,0.00021053,2]
[378730273,1754993464093,-151.0,0.00021069,2]
[378730274,1754993464103,-460.0,0.00021069,2]
[378730275,1754993464113,-2476.3,0.00021069,2]
[378730276,1754993464122,-1029.39,0.00021069,2]
[378730277,1754993464132,-2758.56,0.00021069,2]
[378730278,1754993464143,-460.0,0.00021069,2]
[378730279,1754993464153,-630.36,0.0002107,2]
[378730280,1754993464163,-677.65,0.0002107,2]
[378730281,1754993464172,-1448.01,0.0002107,2]
[378730282,1754993464182,-460.0,0.0002107,2]
[378730283,1754993464192,-460.0,0.0002107,2]
[378730284,1754993464201,-460.0,0.0002107,2]
[378730285,1754993464211,-472.87756567,0.0002107,2]
[378730286,1754993464220,-870.6,0.0002107,2]
[378730287,1754993464230,-460.0,0.0002107,2]
[378730288,1754993464239,-548.95,0.0002107,2]
[378730289,1754993464248,-460.0,0.0002107,2]
[378730290,1754993464258,-725.32,0.0002107,2]
[378730291,1754993464268,-653.95,0.0002107,2]
[378730292,1754993464277,-151.0,0.0002107,2]
[378730293,1754993464287,-491.99,0.0002107,2]
[378730294,1754993464296,-1331.42,0.0002107,2]
[378730295,1754993464305,-599.19,0.0002107,2]
[378730296,1754993464314,-460.0,0.0002107,2]
[378730297,1754993464323,-1920.48,0.0002107,2]
[378730298,1754993464333,-460.0,0.0002107,2]
[378730299,1754993464342,-460.0,0.0002107,2]
[378730300,1754993464351,-460.0,0.0002107,2]
[378730301,1754993464360,-460.0,0.0002107,2]
[378730302,1754993464369,-460.0,0.0002107,2]
[378730303,1754993464379,-460.0,0.00021071,2]
[378730304,1754993464388,-387.65734036,0.00021071,2]
[378730305,1754993464397,-460.0,0.00021071,2]
[378730306,1754993464407,-460.0,0.00021071,2]
[378730307,1754993464417,-460.0,0.00021071,2]
[378730308,1754993464426,-460.0,0.00021071,2]
[378730309,1754993464436,-460.0,0.00021071,2]
[378730310,1754993464446,-460.0,0.00021071,2]
[378730311,1754993464455,-460.0,0.00021071,2]
[378730312,1754993464465,-460.0,0.00021071,2]
[378730313,1754993464475,-885.56,0.00021071,2]
[378730314,1754993464484,-460.0,0.00021071,2]
[378730315,1754993464494,-751.23,0.00021071,2]
[378730316,1754993464504,-151.0,0.00021082,2]
[378730317,1754993464513,-2765.637727,0.00021082,2]
[378730318,1754993464523,-2765.637727,0.00021082,2]
[378730319,1754993464533,-1500.0,0.00021093,2]
[378730320,1754993464543,-1500.0,0.00021093,2]
[378730321,1754993464553,-1500.0,0.00021093,2]
[378730322,1754993464562,-1001.52412103,0.00021093,2]
[378730323,1754993464572,-501.34760076,0.00021093,2]
[378730324,1754993464582,-3000.0,0.00021112,2]
[378730325,1754993464592,-3000.0,0.00021112,2]
[378730326,1754993464601,-842.7074278,0.00021118,2]
[378730327,1754993464611,-200.0,0.0002113,2]
[378730328,1754993464621,-341.1,0.00021213,2]
[378730329,1754993464630,-2000.0,0.00021218,2]
[378730330,1754993464640,-2500.0,0.00021233,2]
[378730331,1754993464650,-460.0,0.00021234,2]
[378730332,1754993464660,-535.68,0.00021234,2]
[378730333,1754993464670,-867.55,0.00021234,2]
[378730334,1754993464820,-460.0,0.00021234,2]
[378730335,1754993464830,-1793.58,0.00021234,2]
[378730336,1754993464840,-4125.85,0.00021234,2]
[378730337,1754993464850,-534.9,0.00021234,2]
[378730338,1754993464860,-702.15,0.00021234,2]
[378730339,1754993464869,-2088.66,0.00021234,2]
[378730340,1754993464878,-2935.88,0.00021234,2]
[378730341,1754993464888,-800.0,0.00021236,2]
[378730342,1754993464897,-460.0,0.00021242,2]
[378730343,1754993464906,-637.48,0.00021243,2]
[378730344,1754993464916,-3358.23,0.00021243,2]
[378730345,1754993464925,-814.25,0.00021243,2]
[378730346,1754993464934,-562.75,0.00021243,2]
[378730347,1754993464944,-1806.29,0.00021243,2]
[378730348,1754993464957,-1411.06,0.00021243,2]
[378730349,1754993464966,-2095.73,0.00021243,2]
[378730350,1754993464976,-460.0,0.00021243,2]
[378730351,1754993464985,-1235.62,0.00021243,2]
[378730352,1754993464995,-460.0,0.00021243,2]
[378730353,1754993465006,-460.0,0.00021243,2]
[378730354,1754993465016,-1123.22,0.00021243,2]
[378730355,1754993465025,-1069.94,0.00021243,2]
[378730356,1754993465035,-1398.29,0.00021243,2]
[378730357,1754993465046,-807.64,0.00021243,2]
[378730358,1754993465055,-460.0,0.00021244,2]
[378730359,1754993465064,-492.35,0.00021244,2]
[378730360,1754993465074,-528.75,0.00021244,2]
[378730361,1754993465083,-808.18,0.00021244,2]
[378730362,1754993465093,-596.24,0.00021244,2]
[378730363,1754993465103,-460.0,0.00021244,2]
[378730364,1754993465112,-460.0,0.00021244,2]
[378730365,1754993465123,-460.0,0.00021244,2]
[378730366,1754993465132,-460.0,0.00021244,2]
[378730367,1754993465142,-542.92,0.00021244,2]
[378730368,1754993465151,-463.86,0.00021244,2]
[378730369,1754993465161,-463.16,0.00021244,2]
[378730370,1754993465171,-813.71,0.00021244,2]
[378730371,1754993465180,-628.94,0.00021244,2]
[378730372,1754993465190,-545.01120239,0.00021244,2]
[378730373,1754993465201,-460.0,0.00021244,2]
[378730374,1754993465210,-460.0,0.00021244,2]
[378730375,1754993465219,-215.83696373,0.00021244,2]
[378730376,1754993465229,-460.0,0.00021244,2]
[378730377,1754993465239,-651.29,0.00021244,2]
[378730378,1754993465249,-832.44,0.00021244,2]
[378730379,1754993465258,-493.22,0.00021244,2]
[378730380,1754993465267,-1204.9,0.00021244,2]
[378730381,1754993465277,-720.75,0.00021244,2]
[378730382,1754993465286,-460.0,0.00021244,2]
[378730383,1754993465295,-1215.91,0.00021244,2]
[378730384,1754993465305,-738.4,0.00021244,2]
[378730385,1754993465314,-661.18,0.00021244,2]
[378730386,1754993465324,-460.0,0.00021244,2]
[378730387,1754993465335,-637.48,0.00021244,2]
[378730388,1754993465344,-460.0,0.00021244,2]
[378730389,1754993465354,-841.31,0.00021244,2]
[378730390,1754993465363,-530.86,0.00021244,2]
[378730391,1754993465373,-552.46,0.00021244,2]
[378730392,1754993465382,-560.65,0.00021244,2]
[378730393,1754993465391,-1222.27,0.00021244,2]
[378730394,1754993465401,-460.0,0.00021244,2]
[378730395,1754993465411,-635.15,0.00021244,2]
[378730396,1754993465420,-460.0,0.00021244,2]
[378730397,1754993465430,-460.0,0.00021244,2]
[378730398,1754993465439,-11752.43,0.00021244,2]
[378730399,1754993465450,-1471.17,0.00021244,2]
[378730400,1754993465460,-3385.92,0.00021244,2]
[378730401,1754993465470,-779.18,0.00021244,2]
[378730402,1754993465479,-205.88477166,0.00021244,2]
[378730403,1754993465489,-664.15,0.00021244,2]
[378730404,1754993465498,-506.59,0.00021244,2]
[378730405,1754993465508,-4114.15,0.00021244,2]
[378730406,1754993465517,-594.05,0.00021244,2]
[378730407,1754993465526,-2981.76,0.00021244,2]
[378730408,1754993465536,-653.57,0.00021244,2]
[378730409,1754993465545,-1339.5,0.00021244,2]
[378730410,1754993465555,-460.0,0.00021244,2]
[378730411,1754993465565,-554.97117967,0.00021244,2]
[378730412,1754993465575,-460.0,0.00021244,2]
[378730413,1754993465584,-1857.89,0.00021244,2]
[378730414,1754993465594,-460.0,0.00021244,2]
[378730415,1754993465604,-1593.29,0.00021244,2]
[378730416,1754993465613,-460.0,0.00021244,2]
[378730417,1754993465623,-1132.56,0.00021244,2]
[378730418,1754993465633,-424.0736733,0.00021272,2]
[378730419,1754993465643,-160.0,0.00021272,5]
[378730420,1754993465653,-460.0,0.00021295,2]
[378730421,1754993465663,-500.49707371,0.00021297,2]
[378730422,1754993465673,-503.59885237,0.00021297,2]
[378730423,1754993465683,-150.0,0.00021297,2]
[378730424,1754993465693,-250.0,0.00021304,2]
[378730425,1754993465703,-500.0,0.00021317,2]
[378730426,1754993465713,-500.0,0.00021317,2]
[378730427,1754993465722,-460.0,0.00021343,2]
[378730428,1754993465732,-2476.3,0.00021343,2]
[378730429,1754993465741,-1029.39,0.00021343,2]
[378730430,1754993465751,-2758.56,0.00021343,2]
[378730431,1754993465760,-460.0,0.00021343,2]
[378730432,1754993465769,-630.36,0.00021344,2]
[378730433,1754993465778,-677.65,0.00021344,2]
[378730434,1754993465788,-1448.01,0.00021344,2]
[378730435,1754993465797,-460.0,0.00021344,2]
[378730436,1754993465806,-385.63306211,0.00021344,2]
[378730437,1754993465816,-460.0,0.00021344,2]
[378730438,1754993465824,-870.6,0.00021344,2]
[378730439,1754993465833,-460.0,0.00021344,2]
[378730440,1754993465843,-548.95,0.00021344,2]
[378730441,1754993465852,-460.0,0.00021344,2]
[378730442,1754993465862,-725.32,0.00021344,2]
[378730443,1754993465873,-653.95,0.00021344,2]
[378730444,1754993465882,-491.99,0.00021344,2]
[378730445,1754993465891,-1331.42,0.00021344,2]
[378730446,1754993465901,-599.19,0.00021344,2]
[378730447,1754993465910,-460.0,0.00021344,2]
[378730448,1754993465920,-1920.48,0.00021344,2]
[378730449,1754993465929,-460.0,0.00021344,2]
[378730450,1754993465939,-460.0,0.00021344,2]
[378730451,1754993465948,-460.0,0.00021344,2]
[378730452,1754993465960,-460.0,0.00021344,2]
[378730453,1754993465970,-572.07503542,0.00021344,2]
[378730454,1754993465979,-460.0,0.00021345,2]
[378730455,1754993465988,-460.0,0.00021345,2]
[378730456,1754993465998,-460.0,0.00021345,2]
[378730457,1754993466007,-460.0,0.00021345,2]
[378730458,1754993466016,-460.0,0.00021345,2]
[378730459,1754993466026,-460.0,0.00021345,2]
[378730460,1754993466036,-460.0,0.00021345,2]
[378730461,1754993466046,-460.0,0.00021345,2]
[378730462,1754993466055,-460.0,0.00021345,2]
[378730463,1754993466064,-885.56,0.00021345,2]
[378730464,1754993466073,-460.0,0.00021345,2]
[378730465,1754993466082,-751.23,0.00021345,2]
[378730466,1754993466093,-719.79528619,0.00021397,2]
[378730467,1754993466102,-250.0,0.00021463,2]
[378730468,1754993466112,-341.1,0.00021475,2]
[378730469,1754993466122,-460.0,0.00021508,2]
[378730470,1754993466132,-535.68,0.00021508,2]
[378730471,1754993466141,-867.55,0.00021508,2]
[378730472,1754993466151,-460.0,0.00021508,2]
[378730473,1754993466160,-1793.58,0.00021508,2]
[378730474,1754993466170,-4125.85,0.00021508,2]
[378730475,1754993466180,-534.9,0.00021508,2]
[378730476,1754993466190,-702.15,0.00021508,2]
[378730477,1754993466200,-2088.66,0.00021508,2]
[378730478,1754993466209,-2935.88,0.00021508,2]
[378730479,1754993466218,-460.0,0.00021516,2]
[378730480,1754993466228,-637.48,0.00021517,2]
[378730481,1754993466237,-3358.23,0.00021517,2]
[378730482,1754993466246,-814.25,0.00021517,2]
[378730483,1754993466256,-562.75,0.00021517,2]
[378730484,1754993466265,-1806.29,0.00021517,2]
[378730485,1754993466275,-1411.06,0.00021517,2]
[378730486,1754993466285,-2095.73,0.00021517,2]
[378730487,1754993466294,-460.0,0.00021517,2]
[378730488,1754993466303,-1235.62,0.00021517,2]
[378730489,1754993466312,-460.0,0.00021517,2]
[378730490,1754993466321,-460.0,0.00021517,2]
[378730491,1754993466331,-1123.22,0.00021517,2]
[378730492,1754993466341,-1069.94,0.00021517,2]
[378730493,1754993466350,-1398.29,0.00021517,2]
[378730494,1754993466359,-150.51860536,0.00021518,2]
[378730495,1754993466368,-492.35,0.00021518,2]
[378730496,1754993466378,-528.75,0.00021518,2]
[378730497,1754993466387,-808.18,0.00021518,2]
[378730498,1754993466397,-596.24,0.00021518,2]
[378730499,1754993466407,-460.0,0.00021518,2]
[378730500,1754993466416,-460.0,0.00021518,2]
[378730501,1754993466425,-460.0,0.00021518,2]
[378730502,1754993466434,-460.0,0.00021518,2]
[378730503,1754993466443,-542.92,0.00021518,2]
[378730504,1754993466454,-463.86,0.00021518,2]
[378730505,1754993466463,-463.16,0.00021518,2]
[378730506,1754993466473,-813.71,0.00021518,2]
[378730507,1754993466482,-628.94,0.00021518,2]
[378730508,1754993466491,-238.98154466,0.00021518,2]
[378730509,1754993466501,-460.0,0.00021518,2]
[378730510,1754993466510,-460.0,0.00021518,2]
[378730511,1754993466519,-651.29,0.00021518,2]
[378730512,1754993466528,-832.44,0.00021518,2]
[378730513,1754993466537,-493.22,0.00021518,2]
[378730514,1754993466547,-1204.9,0.00021518,2]
[378730515,1754993466556,-720.75,0.00021518,2]
[378730516,1754993466565,-460.0,0.00021518,2]
[378730517,1754993466574,-1215.91,0.00021518,2]
[378730518,1754993466584,-738.4,0.00021518,2]
[378730519,1754993466593,-661.18,0.00021518,2]
[378730520,1754993466602,-460.0,0.00021518,2]
[378730521,1754993466611,-637.48,0.00021518,2]
[378730522,1754993466620,-460.0,0.00021518,2]
[378730523,1754993466630,-841.31,0.00021518,2]
[378730524,1754993466639,-530.86,0.00021518,2]
[378730525,1754993466648,-552.46,0.00021518,2]
[378730526,1754993466657,-560.65,0.00021518,2]
[378730527,1754993466667,-1222.27,0.00021518,2]
[378730528,1754993466676,-460.0,0.00021518,2]
[378730529,1754993466685,-635.15,0.00021518,2]
[378730530,1754993466694,-460.0,0.00021518,2]
[378730531,1754993466707,-460.0,0.00021518,2]
[378730532,1754993466716,-11752.43,0.00021518,2]
[378730533,1754993466725,-1471.17,0.00021518,2]
[378730534,1754993466735,-3385.92,0.00021518,2]
[378730535,1754993466744,-779.18,0.00021518,2]
[378730536,1754993466753,-664.15,0.00021518,2]
[378730537,1754993466762,-506.59,0.00021518,2]
[378730538,1754993466771,-4114.15,0.00021518,2]
[378730539,1754993466781,-594.05,0.00021518,2]
[378730540,1754993466790,-2981.76,0.00021518,2]
[378730541,1754993466799,-653.57,0.00021518,2]
[378730542,1754993466808,-1339.5,0.00021518,2]
[378730543,1754993466817,-460.0,0.00021518,2]
[378730544,1754993466827,-460.0,0.00021518,2]
[378730545,1754993466836,-1857.89,0.00021518,2]
[378730546,1754993466845,-460.0,0.00021518,2]
[378730547,1754993466855,-1593.29,0.00021518,2]
[378730548,1754993466864,-460.0,0.00021518,2]
[378730549,1754993466873,-1132.56,0.00021518,2]
[378730550,1754993466883,-151.0,0.00021523,2]
[378730551,1754993466892,-151.0,0.00021523,2]
[378730552,1754993466901,-5000.0,0.00021523,2]
[378730553,1754993466910,-2500.0,0.00021564,2]
[378730554,1754993466920,-211.40625741,0.00021564,2]
[378730555,1754993466929,-1674.50713498,0.00021564,2]
[378730556,1754993466938,-151.0,0.00021617,2]
[378730557,1754993466947,-385.45459669,0.00021617,2]
[378730558,1754993466960,-2476.3,0.00021617,2]
[378730559,1754993466969,-1029.39,0.00021617,2]
[378730560,1754993466979,-2758.56,0.00021617,2]
[378730561,1754993466988,-460.0,0.00021617,2]
[378730562,1754993466998,-151.0,0.00021617,2]
[378730563,1754993467008,-630.36,0.00021618,2]
[378730564,1754993467017,-677.65,0.00021618,2]
[378730565,1754993467026,-1448.01,0.00021618,2]
[378730566,1754993467035,-460.0,0.00021618,2]
[378730567,1754993467045,-460.0,0.00021618,2]
[378730568,1754993467054,-870.6,0.00021618,2]
[378730569,1754993467063,-460.0,0.00021618,2]
[378730570,1754993467072,-548.95,0.00021618,2]
[378730571,1754993467081,-460.0,0.00021618,2]
[378730572,1754993467090,-725.32,0.00021618,2]
[378730573,1754993467099,-653.95,0.00021618,2]
[378730574,1754993467108,-491.99,0.00021618,2]
[378730575,1754993467117,-1331.42,0.00021618,2]
[378730576,1754993467126,-599.19,0.00021618,2]
[378730577,1754993467135,-460.0,0.00021618,2]
[378730578,1754993467144,-460.0,0.00021618,2]
[378730579,1754993467153,-460.0,0.00021618,2]
[378730580,1754993467162,-154.49117955,0.00021618,2]
[378730581,1754993467171,-460.0,0.00021618,2]
[378730582,1754993467180,-460.0,0.00021619,2]
[378730583,1754993467190,-460.0,0.00021619,2]
[378730584,1754993467199,-460.0,0.00021619,2]
[378730585,1754993467208,-150.04451993,0.00021619,2]
[378730586,1754993467217,-460.0,0.00021619,2]
[378730587,1754993467227,-374.96877639,0.00021619,2]
[378730588,1754993467236,-313.73222678,0.00021619,2]
[378730589,1754993467245,-460.0,0.00021619,2]
[378730590,1754993467254,-460.0,0.00021619,2]
[378730591,1754993467264,-885.56,0.00021619,2]
[378730592,1754993467273,-460.0,0.00021619,2]
[378730593,1754993467282,-751.23,0.00021619,2]
[378730594,1754993467292,-2000.0,0.00021641,2]
[378730595,1754993467301,-2000.0,0.00021641,2]
[378730596,1754993467311,-1003.30284187,0.00021641,2]
[378730597,1754993467320,-40878.66103854,0.00021655,2]
[378730598,1754993467330,-151.0,0.00021655,2]
[378730599,1754993467339,-587.0,0.00021656,2]
[378730600,1754993467348,-2784.11466714,0.0002166,2]
[378730601,1754993467358,-3500.0,0.0002166,2]
[378730602,1754993467367,-500.0,0.00021662,2]
[378730603,1754993467376,-162.65333618,0.00021699,2]
[378730604,1754993467385,-341.1,0.00021738,2]
[378730605,1754993467395,-2572.01209533,0.00021766,2]
[378730606,1754993467404,-3000.0,0.00021781,2]
[378730607,1754993467414,-460.0,0.00021782,2]
[378730608,1754993467423,-535.68,0.00021782,2]
[378730609,1754993467433,-867.55,0.00021782,2]
[378730610,1754993467442,-253.85,0.00021782,2]
[378730611,1754993467452,-1793.58,0.00021782,2]
[378730612,1754993467462,-4125.85,0.00021782,2]
[378730613,1754993467472,-534.9,0.00021782,2]
[378730614,1754993467482,-702.15,0.00021782,2]
[378730615,1754993467492,-2088.66,0.00021782,2]
[378730616,1754993467501,-2935.88,0.00021782,2]
[378730617,1754993467510,-460.0,0.0002179,2]
[378730618,1754993467520,-637.48,0.00021791,2]
[378730619,1754993467529,-3358.23,0.00021791,2]
[378730620,1754993467538,-814.25,0.00021791,2]
[378730621,1754993467547,-562.75,0.00021791,2]
[378730622,1754993467557,-1806.29,0.00021791,2]
[378730623,1754993467566,-1411.06,0.00021791,2]
[378730624,1754993467575,-2095.73,0.00021791,2]
[378730625,1754993467585,-203.26591154,0.00021791,2]
[378730626,1754993467594,-1235.62,0.00021791,2]
[378730627,1754993467604,-460.0,0.00021791,2]
[378730628,1754993467613,-460.0,0.00021791,2]
[378730629,1754993467623,-1123.22,0.00021791,2]
[378730630,1754993467632,-1069.94,0.00021791,2]
[378730631,1754993467641,-1398.29,0.00021791,2]
[378730632,1754993467651,-492.35,0.00021792,2]
[378730633,1754993467660,-528.75,0.00021792,2]
[378730634,1754993467670,-808.18,0.00021792,2]
[378730635,1754993467679,-596.24,0.00021792,2]
[378730636,1754993467688,-460.0,0.00021792,2]
[378730637,1754993467698,-460.0,0.00021792,2]
[378730638,1754993467835,-284.85469363,0.00021792,2]
[378730639,1754993467846,-542.92,0.00021792,2]
[378730640,1754993467856,-463.86,0.00021792,2]
[378730641,1754993467865,-463.16,0.00021792,2]
[378730642,1754993467875,-813.71,0.00021792,2]
[378730643,1754993467883,-628.94,0.00021792,2]
[378730644,1754993467893,-460.0,0.00021792,2]
[378730645,1754993467902,-460.0,0.00021792,2]
[378730646,1754993467911,-651.29,0.00021792,2]
[378730647,1754993467920,-832.44,0.00021792,2]
[378730648,1754993467929,-493.22,0.00021792,2]
[378730649,1754993467938,-1204.9,0.00021792,2]
[378730650,1754993467948,-720.75,0.00021792,2]
[378730651,1754993467960,-460.0,0.00021792,2]
[378730652,1754993467970,-1215.91,0.00021792,2]
[378730653,1754993467979,-738.4,0.00021792,2]
[378730654,1754993467988,-661.18,0.00021792,2]
[378730655,1754993467998,-416.53300921,0.00021792,2]
[378730656,1754993468007,-637.48,0.00021792,2]
[378730657,1754993468016,-460.0,0.00021792,2]
[378730658,1754993468025,-841.31,0.00021792,2]
[378730659,1754993468035,-530.86,0.00021792,2]
[378730660,1754993468044,-552.46,0.00021792,2]
[378730661,1754993468054,-560.65,0.00021792,2]
[378730662,1754993468063,-460.0,0.00021792,2]
[378730663,1754993468073,-1222.27,0.00021792,2]
[378730664,1754993468082,-635.15,0.00021792,2]
[378730665,1754993468091,-460.0,0.00021792,2]
[378730666,1754993468100,-460.0,0.00021792,2]
[378730667,1754993468109,-11752.43,0.00021792,2]
[378730668,1754993468118,-1471.17,0.00021792,2]
[378730669,1754993468128,-3385.92,0.00021792,2]
[378730670,1754993468137,-779.18,0.00021792,2]
[378730671,1754993468147,-664.15,0.00021792,2]
[378730672,1754993468157,-506.59,0.00021792,2]
[378730673,1754993468166,-4114.15,0.00021792,2]
[378730674,1754993468175,-594.05,0.00021792,2]
[378730675,1754993468185,-2981.76,0.00021792,2]
[378730676,1754993468195,-653.57,0.00021792,2]
[378730677,1754993468205,-1339.5,0.00021792,2]
[378730678,1754993468214,-460.0,0.00021792,2]
[378730679,1754993468224,-568.24199363,0.00021792,2]
[378730680,1754993468233,-1857.89,0.00021792,2]
[378730681,1754993468243,-460.0,0.00021792,2]
[378730682,1754993468253,-1593.29,0.00021792,2]
[378730683,1754993468262,-460.0,0.00021792,2]
[378730684,1754993468271,-1132.56,0.00021792,2]
[378730685,1754993468281,-1820.0,0.000218,2]
[378730686,1754993468290,-3000.0,0.000218,2]
[378730687,1754993468299,-3000.0,0.000218,2]
[378730688,1754993468309,-3000.0,0.000218,2]
[378730689,1754993468318,-3000.0,0.000218,2]
[378730690,1754993468327,-3000.0,0.000218,2]
[378730691,1754993468336,-162.65333618,0.00021808,2]
[378730692,1754993468346,-560.0,0.00021843,2]
[378730693,1754993468355,-250.0,0.00021845,2]
[378730694,1754993468364,-1000.0,0.00021865,2]
[378730695,1754993468373,-1006.71770364,0.00021865,2]
[378730696,1754993468384,-2476.3,0.00021891,2]
[378730697,1754993468394,-1029.39,0.00021891,2]
[378730698,1754993468404,-2758.56,0.00021891,2]
[378730699,1754993468413,-460.0,0.00021891,2]
[378730700,1754993468423,-630.36,0.00021892,2]
[378730701,1754993468433,-677.65,0.00021892,2]
[378730702,1754993468443,-1448.01,0.00021892,2]
[378730703,1754993468453,-460.0,0.00021892,2]
[378730704,1754993468462,-460.0,0.00021892,2]
[378730705,1754993468471,-870.6,0.00021892,2]
[378730706,1754993468480,-460.0,0.00021892,2]
[378730707,1754993468489,-548.95,0.00021892,2]
[378730708,1754993468499,-460.0,0.00021892,2]
[378730709,1754993468509,-725.32,0.00021892,2]
[378730710,1754993468519,-653.95,0.00021892,2]
[378730711,1754993468528,-491.99,0.00021892,2]
[378730712,1754993468538,-1331.42,0.00021892,2]
[378730713,1754993468547,-599.19,0.00021892,2]
[378730714,1754993468561,-460.0,0.00021892,2]
[378730715,1754993468572,-460.0,0.00021892,2]
[378730716,1754993468584,-460.0,0.00021892,2]
[378730717,1754993468593,-460.0,0.00021892,2]
[378730718,1754993468603,-460.0,0.00021893,2]
[378730719,1754993468612,-460.0,0.00021893,2]
[378730720,1754993468622,-460.0,0.00021893,2]
[378730721,1754993468631,-460.0,0.00021893,2]
[378730722,1754993468641,-460.0,0.00021893,2]
[378730723,1754993468650,-460.0,0.00021893,2]
[378730724,1754993468659,-885.56,0.00021893,2]
[378730725,1754993468669,-460.0,0.00021893,2]
[378730726,1754993468678,-751.23,0.00021893,2]
[378730727,1754993468687,-151.0,0.00021893,2]
[378730728,1754993468697,-3769.15714568,0.000219,3]
[378730729,1754993468706,-151.0,0.00021902,2]
[378730730,1754993468715,-800.0,0.00021916,2]
[378730731,1754993468724,-500.0,0.00021917,2]
[378730732,1754993468734,-500.0,0.00021917,2]
[378730733,1754993468743,-500.0,0.00021917,2]
[378730734,1754993468753,-500.0,0.00021917,2]